fUSD/lending_fUSD_20260401
["ID","MTS","AMOUNT","RATE_DAILY","PERIOD"]
[419235243,1775027371891,-2000.0,8.65e-05,2]
[419235244,1775027372418,535.71,7.826e-05,2]
[419235245,1775027374415,-2000.0,8.65e-05,2]
[419235246,1775027381904,1920.48,7.577e-05,2]
[419235247,1775027382421,2283.62,7.84e-05,2]
[419235248,1775027382445,126.38,7.84e-05,2]
[419235249,1775027382952,1127.33,7.963e-05,2]
[419235250,1775027383492,2700.0,8.213e-05,2]
[419235251,1775027384016,1046.3,8.501e-05,2]
[419235252,1775027384048,1555.7,8.501e-05,2]
[419235253,1775027404553,-300.0,8.649e-05,2]
[419235254,1775027404578,-1200.0,8.649e-05,2]
[419235255,1775027404601,-300.0,8.649e-05,2]
[419235256,1775027404624,-140.0,8.65e-05,2]
[419235257,1775027412751,-134.0,8.65e-05,2]
[419235260,1775027432071,-389.83200602,8.65e-05,2]
[419235261,1775027432231,-161597.94704784,8.65e-05,2]
[419235262,1775027432287,-101000.28482594,8.65e-05,2]
[419235263,1775027432298,-356830.521,8.65e-05,2]
[419235264,1775027432311,-21144.18220611,8.65e-05,2]
[419235270,1775027439379,-737787.14291409,8.65e-05,2]
[419235271,1775027439390,-2500000.0,8.65e-05,2]
[419235272,1775027439400,-3752.3852,8.65e-05,2]
[419235273,1775027439410,-216.60139729,8.682e-05,2]
[419235274,1775027439420,-2400.0,8.682e-05,2]
[419235275,1775027439429,-1930.0805,8.712e-05,2]
[419235276,1775027439439,-1000.0,8.733e-05,2]
[419235277,1775027439449,-3420.0,8.74e-05,2]
[419235278,1775027439458,-1200.0,8.746e-05,2]
[419235279,1775027439467,-5000.0,8.746e-05,2]
[419235280,1775027439476,-2500.0,8.747e-05,2]
[419235281,1775027439485,-4423.02113299,8.749e-05,2]
[419235282,1775027439494,-1000.0,8.749e-05,2]
[419235283,1775027439503,-500.0,8.749e-05,2]
[419235284,1775027439512,-500.0,8.749e-05,2]
[419235285,1775027439522,-500.0,8.749e-05,2]
[419235286,1775027439531,-500.0,8.749e-05,2]
[419235287,1775027439540,-610.07775798,8.749e-05,2]
[419235288,1775027439549,-610.07775798,8.749e-05,2]
[419235289,1775027439559,-610.07775798,8.749e-05,2]
[419235290,1775027439569,-610.07775798,8.749e-05,2]
[419235291,1775027439578,-610.07775798,8.749e-05,2]
[419235292,1775027439588,-610.07775798,8.749e-05,2]
[419235293,1775027439598,-610.07775798,8.749e-05,2]
[419235294,1775027439609,-610.07775798,8.749e-05,2]
[419235295,1775027439618,-610.07775798,8.749e-05,2]
[419235296,1775027439628,-610.07775798,8.749e-05,2]
[419235297,1775027439639,-610.07775798,8.749e-05,2]
[419235298,1775027439649,-610.07775798,8.749e-05,2]
[419235299,1775027439658,-610.07775798,8.749e-05,2]
[419235300,1775027439667,-610.07775798,8.749e-05,2]
[419235301,1775027439679,-610.07775798,8.749e-05,2]
[419235302,1775027439688,-610.07775798,8.749e-05,2]
[419235303,1775027439698,-610.07775798,8.749e-05,2]
[419235304,1775027439707,-610.07775798,8.749e-05,2]
[419235305,1775027439716,-610.07775798,8.749e-05,2]
[419235306,1775027439726,-610.07775798,8.749e-05,2]
[419235307,1775027439736,-610.07775798,8.749e-05,2]
[419235308,1775027439747,-610.07775798,8.749e-05,2]
[419235309,1775027439757,-610.07775798,8.749e-05,2]
[419235310,1775027439766,-610.07775798,8.749e-05,2]
[419235311,1775027439775,-610.07775798,8.749e-05,2]
[419235312,1775027439784,-610.07775798,8.749e-05,2]
[419235313,1775027439793,-610.07775798,8.749e-05,2]
[419235314,1775027439803,-610.07775798,8.749e-05,2]
[419235315,1775027439812,-610.07775798,8.749e-05,2]
[419235316,1775027439823,-610.07775798,8.749e-05,2]
[419235317,1775027439835,-610.07775798,8.749e-05,2]
[419235318,1775027439845,-610.07775798,8.749e-05,2]
[419235319,1775027439856,-610.07775798,8.749e-05,2]
[419235320,1775027439866,-610.07775798,8.749e-05,2]
[419235321,1775027439876,-610.07775798,8.749e-05,2]
[419235322,1775027439886,-610.07775798,8.749e-05,2]
[419235323,1775027439896,-610.07775798,8.749e-05,2]
[419235324,1775027439905,-610.07775798,8.749e-05,2]
[419235325,1775027439915,-610.07775798,8.749e-05,2]
[419235326,1775027439925,-610.07775798,8.749e-05,2]
[419235327,1775027439935,-610.07775798,8.749e-05,2]
[419235328,1775027439944,-610.07775798,8.749e-05,2]
[419235329,1775027439954,-610.07775798,8.749e-05,2]
[419235330,1775027439963,-610.07775798,8.749e-05,2]
[419235331,1775027439973,-610.07775798,8.749e-05,2]
[419235332,1775027439982,-609.21270783,8.749e-05,2]
[419235333,1775027439991,-609.21270783,8.749e-05,2]
[419235334,1775027440001,-609.21270783,8.749e-05,2]
[419235335,1775027440011,-609.21270783,8.749e-05,2]
[419235336,1775027440020,-609.21270783,8.749e-05,2]
[419235337,1775027440029,-609.21270783,8.749e-05,2]
[419235338,1775027440040,-609.21270783,8.749e-05,2]
[419235339,1775027440049,-609.21270783,8.749e-05,2]
[419235340,1775027440058,-609.21270783,8.749e-05,2]
[419235341,1775027440067,-609.21270783,8.749e-05,2]
[419235342,1775027440075,-609.21270783,8.749e-05,2]
[419235343,1775027440084,-609.21270783,8.749e-05,2]
[419235344,1775027440092,-609.21270783,8.749e-05,2]
[419235345,1775027440101,-609.21270783,8.749e-05,2]
[419235346,1775027440112,-609.21270783,8.749e-05,2]
[419235347,1775027440122,-609.21270783,8.749e-05,2]
[419235348,1775027440131,-609.21270783,8.749e-05,2]
[419235349,1775027440140,-609.21270783,8.749e-05,2]
[419235350,1775027440149,-609.21270783,8.749e-05,2]
[419235351,1775027440159,-609.21270783,8.749e-05,2]
[419235352,1775027440169,-609.21270783,8.749e-05,2]
[419235353,1775027440178,-609.21270783,8.749e-05,2]
[419235354,1775027440187,-609.21270783,8.749e-05,2]
[419235355,1775027440196,-609.21270783,8.749e-05,2]
[419235356,1775027440206,-609.21270783,8.749e-05,2]
[419235357,1775027440214,-609.21270783,8.749e-05,2]
[419235358,1775027440224,-609.21270783,8.749e-05,2]
[419235359,1775027440234,-609.21270783,8.749e-05,2]
[419235360,1775027440244,-609.21270783,8.749e-05,2]
[419235361,1775027440254,-609.21270783,8.749e-05,2]
[419235362,1775027440266,-609.21270783,8.749e-05,2]
[419235363,1775027440275,-609.21270783,8.749e-05,2]
[419235364,1775027440284,-500.0,8.749e-05,2]
[419235365,1775027440293,-500.0,8.749e-05,2]
[419235366,1775027440302,-356.10095611,8.749e-05,2]
[419235367,1775027440312,-598.13611315,8.749e-05,2]
[419235368,1775027440322,-598.13611315,8.749e-05,2]
[419235369,1775027440332,-598.13611315,8.749e-05,2]
[419235370,1775027440341,-598.13611315,8.749e-05,2]
[419235372,1775027440351,-598.13611315,8.749e-05,2]
[419235374,1775027440360,-598.13611315,8.749e-05,2]
[419235375,1775027440369,-598.13611315,8.749e-05,2]
[419235376,1775027440380,-598.13611315,8.749e-05,2]
[419235377,1775027440390,-598.13611315,8.749e-05,2]
[419235378,1775027440400,-598.13611315,8.749e-05,2]
[419235379,1775027440409,-598.13611315,8.749e-05,2]
[419235380,1775027440418,-500.0,8.749e-05,2]
[419235381,1775027440428,-168.23876057,8.749e-05,2]
[419235382,1775027440437,-500.0,8.749e-05,2]
[419235383,1775027440447,-500.0,8.749e-05,2]
[419235384,1775027440457,-500.0,8.749e-05,2]
[419235385,1775027440467,-253.60211244,8.749e-05,2]
[419235386,1775027440478,-500.0,8.749e-05,2]
[419235387,1775027440490,-500.0,8.749e-05,2]
[419235388,1775027440500,-500.0,8.749e-05,2]
[419235389,1775027440510,-500.0,8.749e-05,2]
[419235390,1775027440519,-500.0,8.749e-05,2]
[419235391,1775027440529,-33017.9749,8.75e-05,2]
[419235392,1775027440539,-2000.0,8.751e-05,2]
[419235393,1775027440548,-183.48515265,8.751e-05,2]
[419235394,1775027440558,-1930.0,8.772e-05,2]
[419235395,1775027440567,-4003.245,8.772e-05,2]
[419235396,1775027440576,-182.979,8.772e-05,2]
[419235397,1775027440585,-500.0,8.773e-05,2]
[419235398,1775027440595,-500.0,8.773e-05,2]
[419235399,1775027440604,-500.85843489,8.773e-05,2]
[419235400,1775027440613,-500.0,8.773e-05,2]
[419235401,1775027440622,-315.41304023,8.773e-05,2]
[419235402,1775027440631,-500.0,8.773e-05,2]
[419235403,1775027440640,-459842.1175724,8.792e-05,2]
[419235404,1775027440650,-10000.0,8.793e-05,2]
[419235405,1775027440659,-150.0,8.8e-05,2]
[419235406,1775027440668,-182.0,8.821e-05,2]
[419235407,1775027440677,-262.94,8.822e-05,2]
[419235408,1775027440686,-150.0,8.838e-05,2]
[419235409,1775027440695,-1943.42615677,8.847e-05,2]
[419235410,1775027440705,-150.0,8.848e-05,2]
[419235411,1775027440713,-189.0,8.848e-05,2]
[419235412,1775027440724,-150.0,8.849e-05,2]
[419235413,1775027440733,-500.0,8.849e-05,2]
[419235414,1775027440742,-150.0,8.849e-05,2]
[419235415,1775027440751,-500.0,8.849e-05,2]
[419235416,1775027440760,-500.0,8.849e-05,2]
[419235417,1775027440769,-361.40544309,8.849e-05,2]
[419235418,1775027440778,-500.0,8.849e-05,2]
[419235419,1775027440787,-500.0,8.849e-05,2]
[419235420,1775027440796,-500.0,8.849e-05,2]
[419235421,1775027440804,-449.42128436,8.849e-05,2]
[419235422,1775027440814,-500.0,8.849e-05,2]
[419235423,1775027440823,-500.0,8.849e-05,2]
[419235424,1775027440832,-200.66197905,8.849e-05,2]
[419235425,1775027440842,-500.0,8.849e-05,2]
[419235426,1775027440851,-500.0,8.849e-05,2]
[419235427,1775027440860,-500.0,8.849e-05,2]
[419235428,1775027440869,-367.75276225,8.849e-05,2]
[419235429,1775027440878,-945.77,8.858e-05,2]
[419235430,1775027440887,-500.12335694,8.873e-05,2]
[419235431,1775027440897,-500.0,8.873e-05,2]
[419235432,1775027440908,-500.0,8.873e-05,2]
[419235433,1775027440918,-265.00925089,8.873e-05,2]
[419235434,1775027440928,-500.0,8.873e-05,2]
[419235435,1775027440938,-200.69101128,8.873e-05,2]
[419235436,1775027440948,-500.0,8.873e-05,2]
[419235437,1775027440958,-500.0,8.873e-05,2]
[419235438,1775027440967,-500.70925877,8.873e-05,2]
[419235439,1775027440976,-500.0,8.873e-05,2]
[419235440,1775027440986,-500.0,8.873e-05,2]
[419235441,1775027440996,-1623.0,8.877e-05,2]
[419235442,1775027441008,-699.28,8.883e-05,2]
[419235443,1775027441018,-151.0,8.89e-05,2]
[419235444,1775027441028,-1838.0,8.894e-05,2]
[419235445,1775027441039,-1900.0,8.902e-05,2]
[419235446,1775027441048,-785.0,8.912e-05,2]
[419235447,1775027441058,-1800.0,8.922e-05,2]
[419235448,1775027441067,-1718.0,8.93e-05,2]
[419235449,1775027441078,-1250.0,8.948e-05,2]
[419235450,1775027441088,-800.0,8.95e-05,2]
[419235451,1775027441097,-872.0,8.965e-05,2]
[419235452,1775027441106,-2100.0,8.978e-05,2]
[419235453,1775027441115,-2190.0,8.979e-05,2]
[419235454,1775027441125,-1417.0,8.983e-05,2]
[419235455,1775027441134,-150.0,9e-05,2]
[419235456,1775027441143,-150.0,9e-05,2]
[419235457,1775027441153,-283.12117638,9e-05,2]
[419235458,1775027441162,-150.0,9e-05,2]
[419235459,1775027441171,-150.0,9e-05,2]
[419235460,1775027441181,-150.0,9e-05,2]
[419235461,1775027441190,-394.0,9.001e-05,2]
[419235462,1775027441199,-187.0,9.018e-05,2]
[419235463,1775027441209,-772.03,9.023e-05,2]
[419235464,1775027441218,-500.0,9.023e-05,2]
[419235465,1775027441228,-607.0,9.036e-05,2]
[419235466,1775027441237,-2690.0,9.038e-05,2]
[419235467,1775027441247,-1611.55,9.052e-05,2]
[419235468,1775027441256,-177.0,9.054e-05,2]
[419235469,1775027441265,-1213.0,9.072e-05,2]
[419235470,1775027441275,-2440.0,9.078e-05,2]
[419235471,1775027441284,-598.52,9.088e-05,2]
[419235472,1775027441294,-1697.0,9.089e-05,2]
[419235473,1775027441303,-1111.37,9.099e-05,2]
[419235474,1775027441312,-347.14,9.128e-05,2]
[419235475,1775027441322,-2400.0,9.148e-05,2]
[419235476,1775027441331,-1852.42,9.179e-05,2]
[419235477,1775027441340,-1388.97,9.202e-05,2]
[419235478,1775027441350,-843.25,9.236e-05,2]
[419235479,1775027441359,-336.09,9.25e-05,2]
[419235481,1775027441369,-789.43,9.273e-05,2]
[419235482,1775027441378,-275.21,9.28e-05,2]
[419235483,1775027441387,-502.01723983,9.281e-05,2]
[419235484,1775027441396,-500.0,9.297e-05,2]
[419235485,1775027441405,-1002.99147901,9.321e-05,2]
[419235486,1775027441414,-1001.29164834,9.321e-05,2]
[419235487,1775027441424,-1090.85419464,9.321e-05,2]
[419235488,1775027441434,-1000.0,9.321e-05,2]
[419235489,1775027441445,-2290.0,9.326e-05,2]
[419235490,1775027441454,-216.76,9.349e-05,2]
[419235491,1775027441464,-1530.05,9.367e-05,2]
[419235492,1775027441473,-1799.72,9.376e-05,2]
[419235493,1775027441482,-600.0,9.411e-05,2]
[419235494,1775027441493,-2750.6,9.421e-05,2]
[419235495,1775027441502,-2750.6,9.421e-05,2]
[419235496,1775027441514,-477.69648607,9.421e-05,2]
[419235497,1775027441523,-1001.31097275,9.421e-05,2]
[419235498,1775027441533,-1000.0,9.421e-05,2]
[419235499,1775027441543,-1000.0,9.421e-05,2]
[419235500,1775027441552,-1000.0,9.421e-05,2]
[419235501,1775027441563,-1000.0,9.421e-05,2]
[419235502,1775027441572,-1000.0,9.421e-05,2]
[419235503,1775027441581,-150.0,9.5e-05,2]
[419235504,1775027441591,-150.0,9.5e-05,2]
[419235505,1775027441600,-2091239.32039756,9.5e-05,3]
[419235506,1775027441610,-250.0,9.514e-05,2]
[419235507,1775027441620,-420.0,9.514e-05,2]
[419235508,1775027441628,-255.0,9.514e-05,2]
[419235509,1775027441638,-420.0,9.514e-05,2]
[419235510,1775027441647,-1680.0,9.514e-05,2]
[419235511,1775027441656,-420.0,9.514e-05,2]
[419235512,1775027441665,-500.0,9.521e-05,2]
[419235513,1775027441675,-2140.0,9.551e-05,2]
[419235514,1775027441685,-250.0,9.557e-05,2]
[419235515,1775027441694,-500.0,9.571e-05,2]
[419235516,1775027441703,-193.0,9.605e-05,2]
[419235517,1775027441713,-5000.0,9.606e-05,2]
[419235518,1775027441723,-5000.0,9.606e-05,2]
[419235519,1775027441733,-193.0,9.606e-05,2]
[419235520,1775027441743,-306.14552415,9.606e-05,2]
[419235521,1775027442019,-374.93,9.612e-05,2]
[419235522,1775027442059,-1680.0,9.621e-05,2]
[419235523,1775027442070,-1040.0,9.648e-05,2]
[419235524,1775027442081,-29715.35,9.67e-05,2]
[419235525,1775027442091,-9999.99,9.67e-05,2]
[419235526,1775027442101,-2789.99,9.735e-05,2]
[419235527,1775027442111,-9693.018017,9.8e-05,2]
[419235528,1775027442121,-10790.693094,9.8e-05,2]
[419235529,1775027442130,-8079.223442,9.8e-05,2]
[419235530,1775027442139,-151.0,9.844e-05,2]
[419235531,1775027442148,-500.0,9.845e-05,2]
[419235532,1775027442158,-403.22116662,9.868e-05,2]
[419235533,1775027442168,-1000.0,9.928e-05,2]
[419235534,1775027442177,-1500.0,9.968e-05,2]
[419235535,1775027442188,-1500.0,9.968e-05,2]
[419235536,1775027442198,-1500.0,9.968e-05,2]
[419235537,1775027442207,-1500.0,9.968e-05,2]
[419235538,1775027442216,-1500.0,9.968e-05,2]
[419235539,1775027442225,-156.40429272,0.0001,2]
[419235540,1775027442234,-151.41863812,0.0001,2]
[419235541,1775027442243,-92707.11895945,0.0001,2]
[419235542,1775027442253,-162.08085631,0.0001,2]
[419235543,1775027442263,-151.44892936,0.0001,2]
[419235544,1775027442272,-151.13117226,0.0001,2]
[419235545,1775027442281,-252.81457954,0.0001,2]
[419235546,1775027442290,-169.66792767,0.0001,2]
[419235547,1775027442299,-234.68197474,0.0001,2]
[419235548,1775027442309,-1289.58892491,0.0001,2]
[419235549,1775027442319,-500.0,0.0001,2]
[419235550,1775027442329,-500.0,0.0001,2]
[419235551,1775027442339,-500.0,0.0001,2]
[419235552,1775027442348,-500.0,0.0001,2]
[419235553,1775027442359,-500.0,0.0001,2]
[419235554,1775027442369,-500.0,0.0001,2]
[419235555,1775027442378,-500.0,0.0001,2]
[419235556,1775027442387,-500.0,0.0001,2]
[419235557,1775027442397,-500.0,0.0001,2]
[419235558,1775027442406,-582.7449167,0.0001,2]
[419235559,1775027442416,-500.0,0.0001,2]
[419235560,1775027442425,-500.0,0.0001,2]
[419235561,1775027442435,-751.91265307,0.0001,2]
[419235562,1775027442444,-500.0,0.0001,2]
[419235563,1775027442454,-500.0,0.0001,2]
[419235564,1775027442463,-200.0,0.0001,2]
[419235565,1775027442473,-151.0,0.0001,2]
[419235566,1775027442482,-151.0,0.0001,2]
[419235567,1775027442491,-151.0,0.0001,2]
[419235568,1775027442501,-151.0,0.0001,2]
[419235569,1775027442510,-151.0,0.0001,2]
[419235570,1775027442519,-151.0,0.0001,2]
[419235571,1775027442529,-151.0,0.0001,2]
[419235572,1775027442541,-151.0,0.0001,2]
[419235573,1775027442550,-151.0,0.0001,2]
[419235574,1775027442562,-151.0,0.0001,2]
[419235575,1775027442571,-151.0,0.0001,2]
[419235576,1775027442580,-151.0,0.0001,2]
[419235577,1775027442589,-151.0,0.0001,2]
[419235578,1775027442598,-500.0,0.0001,2]
[419235579,1775027442607,-500.0,0.0001,2]
[419235580,1775027442616,-500.0,0.0001,2]
[419235581,1775027442625,-500.0,0.0001,2]
[419235582,1775027442634,-500.0,0.0001,2]
[419235583,1775027442644,-500.0,0.0001,2]
[419235584,1775027442655,-500.0,0.0001,2]
[419235585,1775027442666,-500.0,0.0001,2]
[419235586,1775027442676,-500.0,0.0001,2]
[419235587,1775027442688,-500.0,0.0001,2]
[419235588,1775027442697,-500.0,0.0001,2]
[419235589,1775027442706,-500.0,0.0001,2]
[419235590,1775027442716,-500.0,0.0001,2]
[419235591,1775027442725,-151.0,0.0001,2]
[419235592,1775027442734,-151.0,0.0001,2]
[419235593,1775027442743,-151.0,0.0001,2]
[419235594,1775027442753,-151.0,0.0001,2]
[419235595,1775027442763,-151.0,0.0001,2]
[419235596,1775027442772,-151.0,0.0001,2]
[419235597,1775027442782,-151.0,0.0001,2]
[419235598,1775027442792,-151.0,0.0001,2]
[419235599,1775027442801,-151.0,0.0001,2]
[419235600,1775027442810,-151.0,0.0001,2]
[419235601,1775027442819,-151.0,0.0001,2]
[419235602,1775027442829,-151.0,0.0001,2]
[419235603,1775027442838,-151.0,0.0001,2]
[419235604,1775027442847,-151.0,0.0001,2]
[419235605,1775027442856,-151.0,0.0001,2]
[419235606,1775027442867,-151.0,0.0001,2]
[419235607,1775027442877,-151.0,0.0001,2]
[419235608,1775027442887,-151.0,0.0001,2]
[419235609,1775027442896,-151.0,0.0001,2]
[419235611,1775027442906,-151.0,0.0001,2]
[419235612,1775027442915,-151.0,0.0001,2]
[419235613,1775027442924,-174.29455196,0.0001,2]
[419235614,1775027442935,-325.94674662,0.0001,2]
[419235615,1775027442944,-1107.51400271,0.0001,2]
[419235616,1775027442954,-1443.67752125,0.0001,2]
[419235617,1775027442963,-680.85122316,0.0001,2]
[419235618,1775027442972,-680.85122316,0.0001,2]
[419235619,1775027442982,-10593.45637043,0.0001,2]
[419235620,1775027442990,-971.96,0.00010023,2]
[419235621,1775027442999,-151.0,0.00010084,2]
[419235622,1775027443008,-151.0,0.00010084,2]
[419235623,1775027443018,-261.54857406,0.000101,2]
[419235624,1775027443027,-500.0,0.00010119,2]
[419235625,1775027443037,-520.0,0.00010183,2]
[419235626,1775027443047,-428.12,0.00010206,2]
[419235627,1775027443057,-192.7629,0.000103,7]
[419235628,1775027443066,-500.0,0.00010393,2]
[419235629,1775027443075,-587.0,0.00010465,2]
[419235630,1775027443084,-433.0,0.00010465,2]
[419235631,1775027443094,-587.0,0.00010465,2]
[419235632,1775027443103,-2351.0,0.00010465,2]
[419235633,1775027443112,-587.0,0.00010465,2]
[419235634,1775027443122,-3204.45,0.00010475,2]
[419235636,1775027443131,-1210.26,0.00010475,2]
[419235637,1775027443141,-9999.99,0.00010475,2]
[419235638,1775027443151,-299.99,0.00010475,2]
[419235639,1775027443161,-9999.99,0.00010475,2]
[419235640,1775027443170,-999.99,0.00010475,2]
[419235641,1775027443180,-150.99,0.00010475,2]
[419235642,1775027443191,-150.99,0.00010475,2]
[419235644,1775027443200,-32557.25,0.00010475,2]
[419235645,1775027443210,-4999.99,0.00010475,2]
[419235646,1775027443219,-13222.28,0.00010475,2]
[419235647,1775027443228,-2633.33,0.00010475,2]
[419235648,1775027443238,-499.99,0.00010475,2]
[419235649,1775027443248,-8458.19,0.00010475,2]
[419235650,1775027443258,-4060.56,0.00010475,2]
[419235651,1775027443267,-9999.99,0.00010475,2]
[419235652,1775027443277,-2496.69,0.00010475,2]
[419235653,1775027443286,-2000.0,0.00010516,2]
[419235654,1775027443295,-2000.0,0.00010516,2]
[419235655,1775027443305,-2000.0,0.00010516,2]
[419235656,1775027443315,-2000.0,0.00010516,2]
[419235657,1775027443325,-504.51019122,0.00010516,2]
[419235658,1775027443336,-102604.6453369,0.00010538,2]
[419235659,1775027443345,-1337.30371513,0.00010548,2]
[419235660,1775027443355,-200.0,0.00010548,2]
[419235661,1775027443365,-1946.0,0.00010583,2]
[419235662,1775027443374,-500.0,0.00010667,2]
[419235663,1775027443385,-270.14237308,0.000107,2]
[419235664,1775027443394,-12736.18350904,0.000109,2]
[419235665,1775027443404,-12736.18350899,0.000109,2]
[419235666,1775027443413,-12736.18350899,0.000109,2]
[419235667,1775027443423,-22894.190946,0.00010928,2]
[419235668,1775027443434,-500.0,0.00010941,2]
[419235669,1775027443444,-500.0,0.00010958,2]
[419235670,1775027443454,-500.0,0.00010958,3]
[419235671,1775027443464,-500.0,0.00010958,4]
[419235672,1775027443474,-500.0,0.00010958,5]
[419235673,1775027443484,-500.0,0.00010958,6]
[419235674,1775027443494,-500.0,0.00010958,7]
[419235675,1775027443504,-500.0,0.00010958,8]
[419235676,1775027443513,-500.0,0.00010958,9]
[419235677,1775027443523,-500.0,0.00010958,10]
[419235678,1775027443532,-500.0,0.00010958,11]
[419235679,1775027443542,-500.0,0.00010958,12]
[419235680,1775027443551,-500.0,0.00010958,13]
[419235681,1775027443561,-500.0,0.00010958,14]
[419235682,1775027443570,-500.0,0.00010958,15]
[419235683,1775027443580,-500.0,0.00010958,16]
[419235684,1775027443590,-500.0,0.00010958,17]
[419235685,1775027443599,-500.0,0.00010958,18]
[419235686,1775027443608,-500.0,0.00010959,2]
[419235687,1775027443618,-216.6270075,0.00010959,2]
[419235688,1775027443627,-158.53,0.00010959,2]
[419235689,1775027443637,-239.97550467,0.00010959,2]
[419235690,1775027443646,-5867.65943792,0.00011,2]
[419235691,1775027443656,-1899.64837719,0.00011064,2]
[419235692,1775027443665,-1703.19002491,0.00011064,2]
[419235693,1775027443674,-2500.0,0.00011064,2]
[419235694,1775027443683,-2500.0,0.00011064,2]
[419235695,1775027443693,-1386.78395259,0.00011096,2]
[419235696,1775027443702,-200.0,0.00011096,2]
[419235697,1775027443712,-42054.5616971,0.00011099,2]
[419235698,1775027443721,-42054.56169705,0.00011099,2]
[419235699,1775027443731,-42054.56169705,0.00011099,2]
[419235700,1775027443741,-42054.56169705,0.00011099,2]
[419235701,1775027443750,-42054.56169705,0.00011099,2]
[419235702,1775027443760,-42054.56169705,0.00011099,2]
[419235703,1775027443769,-42054.56169705,0.00011099,2]
[419235704,1775027443779,-42054.56169705,0.00011099,2]
[419235705,1775027443788,-42054.56169705,0.00011099,2]
[419235706,1775027443797,-42054.56169705,0.00011099,2]
[419235707,1775027443807,-350.0,0.00011128,2]
[419235708,1775027443816,-500.0,0.00011215,2]
[419235709,1775027443826,-250.0,0.0001143,2]
[419235710,1775027443835,-6411.96,0.00011507,2]
[419235711,1775027443845,-823.0,0.00011512,2]
[419235712,1775027443854,-736.0,0.00011512,2]
[419235713,1775027443864,-823.0,0.00011512,2]
[419235714,1775027443873,-3292.0,0.00011512,2]
[419235715,1775027443883,-433.0,0.00011512,2]
[419235716,1775027443892,-656.20131343,0.00011612,2]
[419235717,1775027443902,-2963.57500766,0.00011612,2]
[419235718,1775027443911,-1438.09495884,0.00011644,2]
[419235719,1775027443921,-200.0,0.00011644,2]
[419235720,1775027443931,-247.717,0.000117,12]
[419235721,1775027443940,-267.77354857,0.00011743,2]
[419235722,1775027443950,-350.0,0.00011747,2]
[419235723,1775027443959,-12736.18350899,0.00011839,2]
[419235724,1775027443969,-500.0,0.00012054,19]
[419235725,1775027443978,-931.87155833,0.00012192,2]
[419235726,1775027443987,-200.0,0.00012192,2]
[419235727,1775027443996,-347.14,0.00012257,2]
[419235728,1775027444006,-1107.5140027,0.00012351,2]
[419235729,1775027444016,-350.0,0.00012365,2]
[419235730,1775027444025,-1252.0,0.00012662,2]
[419235731,1775027444034,-1152.0,0.00012663,2]
[419235732,1775027444045,-1152.0,0.00012663,2]
[419235733,1775027444055,-4609.0,0.00012663,2]
[419235734,1775027444067,-151.0,0.00012739,2]
[419235735,1775027444078,-200.0,0.0001274,2]
[419235736,1775027444089,-12736.18350899,0.00012862,2]
[419235737,1775027444098,-350.0,0.00012983,2]
[419235738,1775027444108,-250.0,0.00013,2]
[419235739,1775027444117,-150.0,0.00013097,2]
[419235740,1775027444127,-150.0,0.00013097,2]
[419235741,1775027444136,-150.0,0.00013097,2]
[419235742,1775027444146,-181.89517434,0.00013097,2]
[419235743,1775027444155,-20976.71790288,0.00013097,2]
[419235744,1775027444165,-318.3378,0.000131,17]
[419235745,1775027444175,-505.0,0.00013111,2]
[419235746,1775027444185,-200.0,0.00013288,2]
[419235747,1775027444195,-350.0,0.00013601,2]
[419235748,1775027444204,-500.0,0.00013698,2]
[419235749,1775027444214,-500.0,0.00013698,2]
[419235750,1775027444223,-500.0,0.00013698,2]
[419235751,1775027444233,-500.0,0.00013698,2]
[419235752,1775027444242,-500.0,0.00013698,2]
[419235753,1775027444252,-500.0,0.00013698,2]
[419235754,1775027444262,-500.0,0.00013698,2]
[419235755,1775027444271,-500.0,0.00013698,2]